fUSD/lending_fUSD_20260322
["ID","MTS","AMOUNT","RATE_DAILY","PERIOD"]
[408745697,1774187445698,-790.819459,0.00013699,2]
[408745699,1774187445708,-150.49957673,0.000137,2]
[408745700,1774187445718,-151.2437,0.000137,2]
[408745702,1774187445728,-1657.28,0.000137,2]
[408745703,1774187445738,-2125.28,0.000137,2]
[408745705,1774187445748,-2094.74,0.000137,2]
[408745707,1774187445758,-1291.84,0.000137,2]
[408745708,1774187445768,-2616.64,0.000137,2]
[408745710,1774187445778,-901.36,0.000137,2]
[408745712,1774187445788,-22100.26,0.000137,2]
[408745713,1774187445798,-22100.26,0.000137,2]
[408745715,1774187445807,-587.0,0.00013709,2]
[408745717,1774187445817,-433.0,0.00013763,2]
[408745718,1774187445827,-174.18,0.00013805,2]
[408745720,1774187445837,-877.37723,0.0001389,7]
[408745722,1774187445847,-1971.0,0.000139,3]
[408745723,1774187445857,-3000.0,0.000139,5]
[408745724,1774187445867,-521.23273696,0.00013912,2]
[408745725,1774187445876,-500.0,0.00013912,2]
[408745727,1774187445886,-200.0,0.00013933,2]
[408745729,1774187445896,-938.55,0.00013938,2]
[408745731,1774187445906,-150.0,0.00013973,2]
[408745733,1774187445916,-500.0,0.00013989,2]
[408745735,1774187445926,-500.0,0.00013989,2]
[408745737,1774187445935,-129426.70217363,0.0001399,2]
[408745739,1774187445945,-500.0,0.00014,2]
[408745741,1774187445955,-9967.27209998,0.00014003,2]
[408745743,1774187445965,-500.0,0.00014012,2]
[408745745,1774187445975,-500.0,0.00014012,2]
[408745748,1774187445985,-500.0,0.00014012,2]
[408745750,1774187445995,-500.0,0.00014012,2]
[408745753,1774187446004,-500.0,0.00014012,2]
[408745756,1774187446014,-500.0,0.00014012,2]
[408745759,1774187446024,-500.0,0.00014012,2]
[408745762,1774187446033,-500.0,0.00014012,2]
[408745764,1774187446043,-500.0,0.00014012,2]
[408745767,1774187446053,-500.0,0.00014012,2]
[408745770,1774187446062,-229.59071084,0.00014012,2]
[408745774,1774187446072,-500.0,0.00014012,2]
[408745775,1774187446081,-500.0,0.00014012,2]
[408745777,1774187446091,-500.0,0.00014012,2]
[408745779,1774187446101,-500.0,0.00014012,2]
[408745781,1774187446111,-500.0,0.00014012,2]
[408745784,1774187446123,-500.0,0.00014012,2]
[408745786,1774187446133,-500.0,0.00014012,2]
[408745788,1774187446142,-188.33807492,0.00014012,2]
[408745789,1774187446152,-586.02,0.00014012,2]
[408745792,1774187446163,-586.02,0.00014012,2]
[408745794,1774187446173,-586.02,0.00014012,2]
[408745796,1774187446182,-586.02,0.00014012,2]
[408745798,1774187446192,-586.02,0.00014012,2]
[408745800,1774187446203,-586.02,0.00014012,2]
[408745802,1774187446213,-586.02,0.00014012,2]
[408745804,1774187446222,-586.02,0.00014012,2]
[408745806,1774187446237,-586.02,0.00014012,2]
[408745808,1774187446247,-586.02,0.00014012,2]
[408745810,1774187446257,-586.02,0.00014012,2]
[408745812,1774187446267,-500.0,0.00014012,2]
[408745814,1774187446277,-500.0,0.00014012,2]
[408745816,1774187446287,-500.0,0.00014012,2]
[408745818,1774187446297,-500.0,0.00014012,2]
[408745820,1774187446307,-500.0,0.00014012,2]
[408745822,1774187446317,-500.0,0.00014012,2]
[408745824,1774187446326,-526.80863898,0.00014012,2]
[408745826,1774187446336,-150.0,0.00014044,2]
[408745827,1774187446347,-600.0,0.00014063,2]
[408745828,1774187446356,-500.0,0.00014072,2]
[408745829,1774187446366,-160.03,0.00014098,2]
[408745830,1774187446376,-40336.43121456,0.00014115,2]
[408745831,1774187446386,-2000.0,0.00014122,2]
[408745832,1774187446396,-938.55,0.00014212,2]
[408745833,1774187446407,-150.0,0.00014247,2]
[408745834,1774187446416,-1000.0,0.00014247,2]
[408745835,1774187446426,-998.52273734,0.00014247,2]
[408745836,1774187446437,-1001.53007131,0.00014247,2]
[408745837,1774187446447,-1000.0,0.00014247,2]
[408745838,1774187446458,-1000.0,0.00014247,2]
[408745839,1774187446467,-1000.0,0.00014247,2]
[408745840,1774187446477,-502.54227332,0.00014247,2]
[408745841,1774187446487,-1000.0,0.00014247,2]
[408745842,1774187446496,-1000.0,0.00014247,2]
[408745843,1774187446823,-507.92423982,0.00014247,2]
[408745844,1774187446833,-803.0796662,0.00014247,2]
[408745845,1774187446843,-505.99225948,0.00014247,2]
[408745846,1774187446852,-500.67270798,0.00014247,2]
[408745847,1774187446862,-1000.0,0.00014247,2]
[408745848,1774187446872,-1000.0,0.00014247,2]
[408745849,1774187446881,-538.91632234,0.00014247,2]
[408745850,1774187446891,-1000.0,0.00014247,2]
[408745851,1774187446900,-1000.0,0.00014247,2]
[408745852,1774187446910,-1000.0,0.00014247,2]
[408745853,1774187446919,-8716.9696665,0.00014289,2]
[408745854,1774187446929,-168.17,0.00014344,2]
[408745855,1774187446938,-168.17,0.00014344,2]
[408745856,1774187446948,-179.0,0.00014357,3]
[408745857,1774187446959,-159.3427733,0.00014408,2]
[408745858,1774187446968,-102737.7515409,0.0001443,2]
[408745859,1774187446978,-151.0,0.0001443,2]
[408745860,1774187446989,-151.0,0.0001443,2]
[408745861,1774187446998,-150.0,0.00014445,2]
[408745862,1774187447009,-250.0,0.0001448,2]
[408745863,1774187447019,-500.0,0.0001448,2]
[408745864,1774187447028,-200.0,0.00014481,2]
[408745865,1774187447038,-938.55,0.00014486,2]
[408745866,1774187447048,-170.49625358,0.00014503,2]
[408745867,1774187447062,-376.018813,0.00014551,7]
[408745868,1774187447071,-150.0,0.00014565,2]
[408745869,1774187447080,-500.0,0.00014572,2]
[408745870,1774187447089,-335.73,0.000146,2]
[408745871,1774187447099,-150.0,0.00014605,2]
[408745872,1774187447108,-9967.27209998,0.00014635,2]
[408745873,1774187447117,-500.0,0.00014717,2]
[408745874,1774187447127,-160.03,0.00014738,2]
[408745875,1774187447136,-938.59,0.0001476,2]
[408745876,1774187447146,-1158.78645597,0.00014795,2]
[408745877,1774187447156,-1500.0,0.00014795,2]
[408745878,1774187447165,-1500.0,0.00014795,2]
[408745879,1774187447175,-1500.0,0.00014795,2]
[408745880,1774187447185,-1500.0,0.00014795,2]
[408745881,1774187447194,-722.68518983,0.00014795,2]
[408745882,1774187447204,-1500.0,0.00014795,2]
[408745883,1774187447215,-713.64434561,0.00014795,2]
[408745884,1774187447224,-419.75064279,0.00014795,2]
[408745885,1774187447234,-174.18,0.00014853,2]
[408745886,1774187447243,-150.0,0.00014856,2]
[408745887,1774187447254,-150.0,0.00014897,2]
[408745888,1774187447264,-5657.941393,0.00014936,2]
[408745889,1774187447273,-150.0,0.0001498,2]
[408745890,1774187447282,-500.0,0.00014999,2]
[408745891,1774187447291,-300.0,0.00015,2]
[408745892,1774187447300,-2063.71846388,0.00015,2]
[408745893,1774187447309,-2428.27013508,0.00015,14]
[408745894,1774187447318,-8034.12425603,0.00015,2]
[408745895,1774187447327,-152.4978,0.00015,2]
[408745896,1774187447336,-200.0,0.00015029,2]
[408745897,1774187447345,-736.0,0.00015033,2]
[408745898,1774187447354,-823.0,0.00015059,2]
[408745899,1774187447363,-163.0,0.00015068,2]
[408745900,1774187447372,-233.0,0.00015068,2]
[408745901,1774187447382,-746.08,0.00015068,2]
[408745902,1774187447390,-600.0,0.00015089,2]
[408745903,1774187447399,-1600.0,0.00015117,2]
[408745904,1774187447408,-1291.84,0.000152,2]
[408745905,1774187447418,-2616.64,0.000152,2]
[408745906,1774187447428,-901.36,0.000152,2]
[408745907,1774187447437,-979.16666667,0.0001521,2]
[408745908,1774187447450,-160.0,0.0001521,2]
[408745909,1774187447459,-160.0,0.0001521,2]
[408745910,1774187447468,-33896.7616443,0.00015252,2]
[408745911,1774187447477,-9967.27209998,0.00015268,2]
[408745912,1774187447486,-150.0,0.00015293,2]
[408745913,1774187447496,-183.812551,0.00015309,7]
[408745914,1774187447505,-187.486573,0.00015327,2]
[408745915,1774187447515,-150.0,0.00015335,2]
[408745916,1774187447524,-482.79604468,0.00015342,2]
[408745917,1774187447533,-573.03260881,0.00015342,2]
[408745918,1774187447543,-1000.0,0.00015342,2]
[408745919,1774187447552,-1244.0069204,0.00015342,2]
[408745920,1774187447562,-9861.2706955,0.00015364,2]
[408745921,1774187447572,-160.03,0.00015379,2]
[408745922,1774187447581,-1657.28,0.000154,2]
[408745923,1774187447591,-2125.28,0.000154,2]
[408745924,1774187447604,-2094.74,0.000154,2]
[408745925,1774187447615,-500.0,0.00015435,3]
[408745926,1774187447624,-362.65438742,0.00015495,2]
[408745927,1774187447635,-2001.41322195,0.000155,3]
[408745928,1774187447644,-4000.0,0.00015507,2]
[408745929,1774187447654,-500.0,0.00015534,2]
[408745930,1774187447664,-500.0,0.00015534,2]
[408745931,1774187447674,-2000.0,0.00015535,2]
[408745932,1774187447684,-217.73791025,0.00015577,2]
[408745933,1774187447694,-217.0,0.00015694,2]
[408745934,1774187447704,-3800.0,0.000157,5]
[408745935,1774187447713,-217.0,0.00015709,2]
[408745936,1774187447722,-150.0,0.0001573,2]
[408745937,1774187447732,-150.0,0.00015773,2]
[408745938,1774187447742,-500.0,0.00015781,2]
[408745939,1774187447751,-500.0,0.00015799,2]
[408745940,1774187447760,-500.0,0.00015799,2]
[408745941,1774187447770,-500.0,0.00015799,2]
[408745942,1774187447779,-500.0,0.00015799,2]
[408745943,1774187447788,-500.0,0.00015799,2]
[408745944,1774187447798,-500.0,0.00015799,2]
[408745945,1774187447807,-586.02,0.00015799,2]
[408745946,1774187447817,-586.02,0.00015799,2]
[408745947,1774187447829,-586.02,0.00015799,2]
[408745948,1774187447838,-586.02,0.00015799,2]
[408745949,1774187447848,-586.02,0.00015799,2]
[408745950,1774187447856,-586.02,0.00015799,2]
[408745951,1774187447866,-700.0,0.000158,5]
[408745952,1774187447875,-2767.56,0.00015804,2]
[408745953,1774187447884,-9160.851302,0.00015805,2]
[408745954,1774187447893,-7563.3898542,0.00015827,2]
[408745955,1774187447902,-217.0,0.0001584,2]
[408745956,1774187447911,-217.0,0.0001584,2]
[408745957,1774187447921,-1656.32,0.00015862,2]
[408745958,1774187447930,-217.0,0.00015863,2]
[408745959,1774187447939,-217.0,0.00015873,2]
[408745960,1774187447948,-2000.0,0.0001589,2]
[408745961,1774187447957,-4000.0,0.00015895,2]
[408745962,1774187447966,-586.02,0.00015899,2]
[408745963,1774187447975,-700.0,0.000159,5]
[408745964,1774187447984,-9967.27209998,0.000159,2]
[408745965,1774187447994,-654.83616178,0.000159,2]
[408745966,1774187448002,-8716.9696665,0.00015901,2]
[408745967,1774187448011,-284.934172,0.0001594,2]
[408745968,1774187448020,-168.0,0.00015941,2]
[408745969,1774187448030,-168.0,0.00015941,2]
[408745970,1774187448039,-250.51090437,0.00015945,2]
[408745971,1774187448048,-400.0,0.00015945,2]
[408745972,1774187448057,-400.0,0.00015945,2]
[408745973,1774187448066,-400.0,0.00015945,2]
[408745974,1774187448076,-452.83530153,0.00015945,2]
[408745975,1774187448085,-3625.57747866,0.0001596,2]
[408745976,1774187448095,-2200.3469095,0.00015964,2]
[408745977,1774187448104,-852.19227515,0.0001599,2]
[408745978,1774187448113,-186.836206,0.00015997,2]
[408745979,1774187448123,-151.0,0.00015997,2]
[408745980,1774187448132,-666.0,0.00015999,2]
[408745981,1774187448142,-666.0,0.00015999,2]
[408745982,1774187448151,-666.0,0.00015999,2]
[408745983,1774187448160,-500.0,0.00015999,2]
[408745984,1774187448169,-500.0,0.00015999,2]
[408745985,1774187448178,-500.0,0.00015999,2]
[408745986,1774187448187,-390.47678169,0.00015999,2]
[408745987,1774187448196,-500.0,0.00015999,2]
[408745988,1774187448205,-500.0,0.00015999,2]
[408745989,1774187448214,-500.0,0.00015999,2]
[408745990,1774187448224,-485.30482118,0.00015999,2]
[408745991,1774187448235,-1984769.43245584,0.00016,2]
[408745992,1774187448260,-335.90610531,0.00016,2]
[408745993,1774187448522,-1337.79988137,0.00016,2]
[408745994,1774187448537,-882.09290344,0.00016,2]
[408745995,1774187448548,-7765.24741519,0.00016,2]
[408745996,1774187448559,-686.73244398,0.00016,2]
[408745997,1774187448603,-65702.03238331,0.00016,2]
[408745998,1774187448615,-131797.08206433,0.00016,2]
[408745999,1774187448630,-680.76275655,0.00016,2]
[408746000,1774187450784,-579.89459538,0.00011473,2]
[408746001,1774187450794,-843.50725315,0.00012686,2]
[408746002,1774187450900,-864.55,0.00012686,2]
[408746003,1774187450911,-1123.71239335,0.00012686,2]
[408746004,1774187450923,-431.885,0.00012686,2]
[408746005,1774187450934,-26027.0558936,0.00012686,2]
[408746006,1774187450943,-190174.9696024,0.00016,2]
[408746007,1774187450954,-110894.9999985,0.00016,2]
[408746008,1774187524319,300.0,0.000108,3]
[408746009,1774187526407,700.0,0.000109,3]
[408746011,1774187564303,364.68,0.00016,120]
[408746012,1774187605535,300.0,0.000107,3]
[408746013,1774187606683,700.0,0.000108,3]
[408746014,1774187608783,1100.0,0.000109,3]
[408746015,1774187686240,-178.0,0.00010912,2]
[408746016,1774187686260,-250.0,0.00011141,2]
[408746017,1774187686281,-7372.0,0.00011273,2]
[408746018,1774187694093,466.5359,0.00010859,2]
[408746019,1774187757773,328.22,0.00016,120]
[408746020,1774187843699,5881.42,0.00010895,2]
[408746021,1774187873303,1552.0541,0.0001087,2]
[408746022,1774187873326,4326.8359,0.0001087,2]
[408746023,1774187885090,-155.0,0.00010912,2]
[408746024,1774187885121,-169.0,0.00010912,2]
[408746025,1774187885152,-159.0,0.00010912,2]
[408746026,1774187886946,162.0,0.00010912,2]
[408746027,1774187900278,158.0,0.00010912,2]
[408746028,1774187945138,154.0,0.00010912,2]
[408746029,1774187948917,295.39,0.00016,120]
[408746030,1774187951667,159.0,0.00010912,2]
[408746031,1774188006916,154.0,0.00010912,2]
[408746032,1774188007437,155.0,0.00010912,2]
[408746033,1774188013243,159.0,0.00010912,2]
[408746034,1774188070372,154.0,0.00010912,2]
[408746035,1774188074419,159.0,0.00010912,2]
[408746036,1774188126344,154.0,0.00010912,2]
[408746037,1774188142148,265.85,0.00016,120]
[408746038,1774188188792,154.0,0.00010912,2]
[408746039,1774188314137,160.03,0.00010403,2]
[408746040,1774188333642,239.27,0.00016,120]
[408746042,1774188463495,700.0,0.000107,3]
[408746043,1774188464658,1400.0,0.000108,3]
[408746044,1774188466753,2100.0,0.000109,3]
[408746045,1774188512269,-154.0,0.00010912,2]
[408746046,1774188525319,215.34,0.00016,120]
[408746047,1774188605549,155.0,0.00010912,2]
[408746048,1774188608143,154.0,0.00010912,2]
[408746051,1774188632411,-263.0,0.00010935,2]
[408746052,1774188632421,-250.0,0.00010935,2]
[408746053,1774188632434,-166.66,0.00010959,2]
[408746054,1774188632444,-185.25,0.00010959,2]
[408746055,1774188632453,-250.0,0.00011034,2]
[408746056,1774188632463,-160.03,0.00011053,2]
[408746057,1774188632472,-166.66,0.00011068,2]
[408746058,1774188632482,-436.5574412,0.00011073,2]
[408746059,1774188632492,-86.46677469,0.00011073,2]
[408746060,1774188632511,-735.90085166,0.00011073,2]
[408746061,1774188632522,-716.7707529,0.00011073,2]
[408746062,1774188632557,-7182.22470825,0.00011073,2]
[408746063,1774188632567,-284.06409172,0.00011156,2]
[408746064,1774188632576,-227.0,0.00011164,2]
[408746065,1774188632586,-300.0,0.00011164,2]
[408746066,1774188632595,-150.0,0.00011164,2]
[408746067,1774188632604,-300.0,0.00011164,2]
[408746068,1774188632614,-1200.0,0.00011164,2]
[408746069,1774188632624,-73122.1938,0.00011165,2]
[408746070,1774188632635,-93582.41226369,0.00011166,2]
[408746071,1774188632652,-529.83338641,0.00011166,2]
[408746074,1774188637817,-451.15504761,0.00011166,2]
[408746075,1774188637907,-784.92452758,0.00011166,2]
[408746076,1774188637938,-68820.99999995,0.00011166,2]
[408746077,1774188638052,-279.04003995,0.00011166,2]
[408746119,1774188640132,-1335551.63473481,0.00011166,2]
[408746120,1774188640142,-500.0,0.00011173,2]
[408746121,1774188640549,-500.0,0.00011173,2]
[408746122,1774188640559,-500.80069878,0.00011173,2]
[408746123,1774188640569,-503.08076831,0.00011173,2]
[408746124,1774188640579,-500.0,0.00011173,2]
[408746125,1774188640588,-500.48919478,0.00011173,2]
[408746126,1774188640598,-314.25079956,0.00011173,2]
[408746127,1774188640607,-499.91265482,0.00011173,2]
[408746128,1774188640617,-500.0,0.00011173,2]
[408746129,1774188640627,-23798.24311095,0.00011177,2]
[408746130,1774188640636,-166.66,0.00011178,2]
[408746131,1774188640645,-174.19,0.00011233,2]
[408746132,1774188640654,-1974.4588,0.00011266,2]
[408746133,1774188640664,-29986.2326,0.00011266,2]
[408746134,1774188640674,-3527.0394,0.00011266,2]
[408746135,1774188640683,-2500.0,0.00011266,2]
[408746136,1774188640693,-150.0,0.00011272,2]
[408746137,1774188640702,-150.0,0.00011272,7]
[408746138,1774188640713,-414.525,0.00011272,2]
[408746139,1774188640724,-8307.119,0.00011272,2]
[408746140,1774188640734,-500.0,0.00011273,2]
[408746142,1774188640744,-500.0,0.00011273,2]
[408746144,1774188640753,-500.0,0.00011273,2]
[408746146,1774188640762,-500.0,0.00011273,2]
[408746148,1774188640771,-502.75676599,0.00011273,2]
[408746150,1774188640780,-500.0,0.00011273,2]
[408746151,1774188640790,-38822.35231415,0.00011273,2]
[408746152,1774188640799,-500.0,0.00011277,2]
[408746153,1774188640808,-1529.42446256,0.00011277,2]
[408746154,1774188640818,-9999.99,0.00011277,2]
[408746155,1774188640827,-999.99,0.00011277,2]
[408746156,1774188640837,-4619.96,0.00011277,2]
[408746157,1774188640846,-150.99,0.00011277,2]
[408746158,1774188640856,-4999.99,0.00011277,2]
[408746159,1774188640866,-1568.76,0.00011277,2]
[408746160,1774188640875,-9441.15,0.00011277,2]
[408746161,1774188640885,-9999.99,0.00011277,2]
[408746162,1774188640894,-2172.51,0.00011277,2]
[408746163,1774188640904,-353.25,0.00011277,2]
[408746164,1774188640914,-9999.99,0.00011277,2]
[408746165,1774188640923,-9999.99,0.00011277,2]
[408746166,1774188640933,-299.99,0.00011277,2]
[408746167,1774188640943,-1000.74,0.00011277,2]
[408746168,1774188640952,-150.99,0.00011277,2]
[408746169,1774188640962,-5864.84,0.00011277,2]
[408746170,1774188640971,-3389.31,0.00011281,2]
[408746171,1774188640984,-166.66,0.00011288,2]
[408746172,1774188640993,-150.0,0.000113,2]
[408746173,1774188641003,-269.0,0.00011334,2]
[408746174,1774188641014,-182.0,0.00011356,2]
[408746175,1774188641027,-500.0,0.00011366,2]
[408746176,1774188641036,-500.0,0.00011366,2]
[408746177,1774188641046,-500.0,0.00011366,2]
[408746178,1774188641055,-500.0,0.00011366,2]
[408746179,1774188641065,-500.0,0.00011366,2]
[408746180,1774188641075,-500.0,0.00011366,2]
[408746181,1774188641084,-500.0,0.00011366,2]
[408746182,1774188641093,-500.0,0.00011366,2]
[408746183,1774188641103,-500.0,0.00011366,2]
[408746184,1774188641112,-500.0,0.00011366,2]
[408746185,1774188641121,-500.0,0.00011366,2]
[408746186,1774188641130,-500.0,0.00011366,2]
[408746187,1774188641139,-500.0,0.00011366,2]
[408746188,1774188641149,-151.0,0.00011366,2]
[408746189,1774188641158,-151.0,0.00011366,2]
[408746190,1774188641168,-151.0,0.00011366,2]
[408746191,1774188641177,-151.0,0.00011366,2]
[408746192,1774188641187,-151.0,0.00011366,2]
[408746193,1774188641196,-151.0,0.00011366,2]
[408746194,1774188641206,-151.0,0.00011366,2]
[408746195,1774188641215,-151.0,0.00011366,2]
[408746196,1774188641225,-151.0,0.00011366,2]
[408746197,1774188641234,-151.0,0.00011366,2]
[408746198,1774188641244,-151.0,0.00011366,2]
[408746199,1774188641253,-151.0,0.00011366,2]
[408746200,1774188641263,-151.0,0.00011366,2]
[408746201,1774188641272,-151.0,0.00011366,2]
[408746202,1774188641282,-500.0,0.00011366,2]
[408746203,1774188641292,-500.0,0.00011366,2]
[408746204,1774188641302,-500.0,0.00011366,2]
[408746205,1774188641312,-500.0,0.00011366,2]
[408746206,1774188641321,-500.0,0.00011366,2]
[408746207,1774188641331,-500.0,0.00011366,2]
[408746208,1774188641343,-500.0,0.00011366,2]
[408746209,1774188641354,-500.0,0.00011366,2]
[408746210,1774188641363,-500.0,0.00011366,2]
[408746211,1774188641373,-200.0,0.00011366,2]
[408746212,1774188641383,-500.0,0.00011366,2]
[408746213,1774188641393,-500.0,0.00011366,2]
[408746214,1774188641403,-500.0,0.00011366,2]
[408746215,1774188641413,-500.0,0.00011366,2]
[408746216,1774188641422,-500.0,0.00011366,2]
[408746217,1774188641431,-500.0,0.00011372,2]
[408746218,1774188641440,-393.36159119,0.00011372,2]
[408746219,1774188641449,-500.0,0.00011373,2]
[408746220,1774188641459,-574.62700701,0.00011373,2]
[408746221,1774188641468,-500.0,0.00011373,2]
[408746222,1774188641478,-500.0,0.00011373,2]
[408746223,1774188641487,-500.0,0.00011373,2]
[408746224,1774188641497,-500.0,0.00011373,2]
[408746225,1774188641506,-165.9029998,0.00011373,2]
[408746226,1774188641515,-500.0,0.00011373,2]
[408746227,1774188641524,-500.0,0.00011373,2]
[408746228,1774188641534,-167.52277852,0.00011373,2]
[408746229,1774188641543,-32984.9071,0.00011377,2]
[408746230,1774188641552,-1000.0,0.00011377,2]
[408746231,1774188641564,-171.0,0.00011379,2]
[408746232,1774188641574,-174.0,0.00011385,2]
[408746233,1774188641584,-166.66,0.00011397,2]
[408746234,1774188641594,-388.0,0.00011401,2]
[408746235,1774188641603,-377.0,0.00011407,2]
[408746236,1774188641612,-227.73430555,0.00011413,2]
[408746237,1774188641621,-398.77092683,0.00011413,2]
[408746238,1774188641630,-354.35356207,0.00011413,2]
[408746239,1774188641640,-381.88396226,0.00011413,2]
[408746240,1774188641650,-491.0,0.00011424,2]
[408746241,1774188641660,-966.0,0.0001143,2]
[408746242,1774188641669,-426.0,0.00011447,2]
[408746243,1774188641678,-1601.0,0.00011453,2]
[408746244,1774188641687,-327.0,0.00011469,2]
[408746245,1774188641697,-1927.0,0.00011476,2]
[408746246,1774188641706,-484.0,0.00011492,2]
[408746247,1774188641715,-515.0,0.00011498,2]
[408746248,1774188641724,-166.66,0.00011507,2]
[408746249,1774188641733,-274.0,0.00011515,2]
[408746250,1774188641742,-437.0,0.00011521,2]
[408746251,1774188641752,-291.0,0.00011537,2]
[408746252,1774188641761,-500.0,0.00011551,2]
[408746253,1774188641770,-389.0,0.0001156,2]
[408746254,1774188641779,-190.0,0.00011582,2]
[408746255,1774188641789,-221.0,0.00011605,2]
[408746256,1774188641799,-600.0,0.00011618,2]
[408746257,1774188641808,-291.0,0.00011628,2]
[408746258,1774188641818,-280.0,0.0001165,2]
[408746259,1774188641827,-338.0,0.00011673,2]
[408746260,1774188641836,-500.0,0.00011677,2]
[408746261,1774188641847,-500.0,0.00011677,2]
[408746262,1774188641856,-500.0,0.00011677,2]
[408746263,1774188641866,-500.0,0.00011677,2]
[408746264,1774188641876,-500.0,0.00011677,2]
[408746265,1774188641885,-500.0,0.00011677,2]
[408746266,1774188641895,-500.0,0.00011677,2]
[408746267,1774188641904,-500.0,0.00011677,2]
[408746268,1774188641913,-515.0,0.00011677,2]
[408746269,1774188641923,-515.0,0.00011677,2]
[408746270,1774188641932,-515.0,0.00011677,2]
[408746271,1774188641941,-515.0,0.00011677,2]
[408746272,1774188641951,-515.0,0.00011677,2]
[408746273,1774188641960,-515.0,0.00011677,2]
[408746274,1774188641969,-500.0,0.00011677,2]
[408746275,1774188641983,-515.0,0.00011677,2]
[408746276,1774188641992,-515.0,0.00011677,2]
[408746277,1774188642002,-500.0,0.00011677,2]
[408746278,1774188642011,-515.0,0.00011677,2]
[408746279,1774188642022,-500.0,0.00011677,2]
[408746280,1774188642031,-515.0,0.00011677,2]
[408746281,1774188642041,-500.0,0.00011677,2]
[408746282,1774188642051,-515.0,0.00011677,2]
[408746283,1774188642060,-500.0,0.00011677,2]
[408746284,1774188642070,-515.0,0.00011677,2]
[408746285,1774188642081,-500.0,0.00011677,2]
[408746286,1774188642090,-156.71503579,0.00011677,2]
[408746287,1774188642099,-515.0,0.00011677,2]
[408746288,1774188642108,-515.0,0.00011677,2]
[408746289,1774188642117,-515.0,0.00011677,2]
[408746290,1774188642127,-515.0,0.00011677,2]
[408746291,1774188642136,-515.0,0.00011677,2]
[408746292,1774188642146,-515.0,0.00011677,2]
[408746293,1774188642155,-515.0,0.00011677,2]
[408746294,1774188642164,-515.0,0.00011677,2]
[408746295,1774188642174,-515.0,0.00011677,2]
[408746296,1774188642183,-515.0,0.00011677,2]
[408746297,1774188642193,-515.0,0.00011677,2]
[408746298,1774188642202,-533.49700389,0.00011677,2]
[408746299,1774188642212,-164.0,0.00011696,2]
[408746300,1774188642221,-23798.24311093,0.00011702,2]
[408746301,1774188642230,-160.03,0.00011704,2]
[408746302,1774188642240,-490.0,0.00011718,2]
[408746303,1774188642249,-1000.0,0.00011721,2]
[408746304,1774188642258,-1004.67871963,0.00011721,2]
[408746305,1774188642267,-500.0,0.00011721,2]
[408746306,1774188642276,-1000.0,0.00011721,2]
[408746307,1774188642286,-171227.68847329,0.00011731,2]
[408746308,1774188642295,-467.0,0.00011741,2]
[408746309,1774188642305,-38822.3523141,0.00011787,2]
[408746310,1774188642316,-501.01870448,0.00011821,2]
[408746311,1774188642326,-1089.03973837,0.00011821,2]
[408746312,1774188642335,-1000.0,0.00011821,2]
[408746313,1774188642345,-929.84899427,0.00011821,2]